[Event "Swedish Chess Championship 2019: Kadett-SM"]
[Site "Stiga Sports Arena, Arenatorget 1, Eskilstuna, Sweden, Sweden"]
[Date "2019.07.12"]
[Round "7.5"]
[White "Joensson, Oscar"]
[Black "Hall, Alexander"]
[Result "0-1"]
[TimeControl "90 minutes for 40 moves + 30 minutes for the rest of the game + 30 seconds per move from move one"]
[WhiteFideId "1729977"]
[BlackFideId "1738933"]
[WhiteElo "1752"]
[BlackElo "1805"]

1. d4 {[%clk 01:30:57]} {[%emt 00:00:02]} Nf6 {[%clk 01:30:57]} {[%emt
00:00:04]} 2. Nf3 {[%clk 01:31:22]} {[%emt 00:00:05]} g6 {[%clk 01:31:23]}
{[%emt 00:00:04]} 3. e3 {[%clk 01:31:40]} {[%emt 00:00:12]} Bg7 {[%clk
01:31:48]} {[%emt 00:00:05]} 4. b3 {[%clk 01:32:02]} {[%emt 00:00:08]} c5
{[%clk 01:32:13]} {[%emt 00:00:05]} 5. Bb2 {[%clk 01:32:22]} {[%emt 00:00:10]}
cxd4 {[%clk 01:32:36]} {[%emt 00:00:07]} 6. exd4 {[%clk 01:32:24]} {[%emt
00:00:27]} O-O {[%clk 01:32:56]} {[%emt 00:00:10]} 7. Be2 {[%clk 01:32:39]}
{[%emt 00:00:14]} d5 {[%clk 01:33:08]} {[%emt 00:00:19]} 8. O-O {[%clk
01:32:52]} {[%emt 00:00:17]} Nc6 {[%clk 01:32:45]} {[%emt 00:00:53]} 9. c4
{[%clk 01:31:59]} {[%emt 00:01:23]} Bf5 {[%clk 01:28:04]} {[%emt 00:05:11]} 10.
Nc3 {[%clk 01:30:21]} {[%emt 00:02:08]} dxc4 {[%clk 01:14:44]} {[%emt
00:13:50]} 11. Bxc4 {[%clk 01:29:50]} {[%emt 00:01:01]} Nb4 {[%clk 01:04:00]}
{[%emt 00:11:14]} 12. a3 {[%clk 01:26:52]} {[%emt 00:03:28]} Nbd5 {[%clk
01:04:03]} {[%emt 00:00:26]} 13. Nxd5 {[%clk 01:23:51]} {[%emt 00:03:32]} Nxd5
{[%clk 01:04:32]} {[%emt 00:00:01]} 14. Re1 {[%clk 01:22:13]} {[%emt 00:02:08]}
e6 {[%clk 00:42:18]} {[%emt 00:22:44]} 15. Ne5 {[%clk 01:18:38]} {[%emt
00:04:05]} h5 {[%clk 00:36:22]} {[%emt 00:06:26]} 16. Qf3 {[%clk 01:12:50]}
{[%emt 00:06:17]} Rb8 {[%clk 00:27:27]} {[%emt 00:09:26]} 17. b4 {[%clk
00:53:55]} {[%emt 00:19:25]} Rc8 {[%clk 00:24:09]} {[%emt 00:03:49]} 18. Bxd5
{[%clk 00:37:11]} {[%emt 00:17:14]} Qxd5 {[%clk 00:24:15]} {[%emt 00:00:23]} 19.
Rac1 {[%clk 00:32:52]} {[%emt 00:04:49]} Qxf3 {[%clk 00:23:38]} {[%emt
00:01:07]} 20. Nxf3 {[%clk 00:33:08]} {[%emt 00:00:14]} Bh6 {[%clk 00:20:38]}
{[%emt 00:03:30]} 21. Ra1 {[%clk 00:24:00]} {[%emt 00:09:38]} Rc2 {[%clk
00:15:43]} {[%emt 00:05:25]} 22. Bc1 {[%clk 00:23:05]} {[%emt 00:01:25]} Bxc1
{[%clk 00:12:43]} {[%emt 00:03:31]} 23. Rexc1 {[%clk 00:22:14]} {[%emt
00:01:20]} Rfc8 {[%clk 00:12:56]} {[%emt 00:00:17]} 24. Rxc2 {[%clk 00:21:50]}
{[%emt 00:00:55]} Rxc2 {[%clk 00:13:16]} {[%emt 00:00:09]} 25. Ne5 {[%clk
00:22:03]} {[%emt 00:00:17]} Be4 {[%clk 00:09:21]} {[%emt 00:04:19]} 26. a4
{[%clk 00:20:52]} {[%emt 00:01:48]} Rd2 {[%clk 00:04:24]} {[%emt 00:05:25]} 27.
f3 {[%clk 00:19:49]} {[%emt 00:01:34]} Bd5 {[%clk 00:03:56]} {[%emt 00:00:56]}
28. Rc1 {[%clk 00:19:27]} {[%emt 00:00:54]} Rxd4 {[%clk 00:03:33]} {[%emt
00:00:54]} 29. Rc8+ {[%clk 00:19:43]} {[%emt 00:00:14]} Kg7 {[%clk 00:03:52]}
{[%emt 00:00:10]} 30. Rc7 {[%clk 00:20:00]} {[%emt 00:00:14]} Kf6 {[%clk
00:02:19]} {[%emt 00:01:59]} 31. Nxf7 {[%clk 00:20:19]} {[%emt 00:00:15]} Rxb4
{[%clk 00:02:09]} {[%emt 00:00:40]} 32. Nd6 {[%clk 00:19:51]} {[%emt 00:00:58]}
e5 {[%clk 00:00:34]} {[%emt 00:02:06]} 33. a5 {[%clk 00:19:42]} {[%emt
00:00:39]} Ra4 {[%clk 00:00:32]} {[%emt 00:00:32]} 34. Ne8+ {[%clk 00:19:45]}
{[%emt 00:00:26]} Ke6 {[%clk 00:00:34]} {[%emt 00:00:28]} 35. Rg7 {[%clk
00:19:56]} {[%emt 00:00:18]} Kf5 {[%clk 00:00:39]} {[%emt 00:00:25]} 36. h3
{[%clk 00:19:39]} {[%emt 00:00:48]} Rxa5 {[%emt 00:00:25]} 37. g4+ {[%clk
00:19:58]} {[%emt 00:00:11]} hxg4 {[%clk 00:00:59]} {[%emt 00:00:15]} 38. fxg4+
{[%clk 00:20:08]} {[%emt 00:00:20]} Kg5 {[%clk 00:00:34]} {[%emt 00:00:55]} 39.
h4+ {[%clk 00:20:15]} {[%emt 00:00:23]} Kxg4 {[%clk 00:00:34]} {[%emt
00:00:30]} 40. Nf6+ {[%clk 00:19:46]} {[%emt 00:00:59]} Kxh4 {[%clk 00:00:37]}
{[%emt 00:00:27]} 41. Nxd5 {[%clk 00:19:18]} {[%emt 00:00:58]} Rxd5 {[%clk
00:00:58]} {[%emt 00:00:09]} 42. Rxb7 {[%clk 00:19:43]} {[%emt 00:00:05]} a5
{[%clk 00:24:59]} {[%emt 00:06:28]} 43. Kf2 {[%clk 00:49:49]} {[%emt 00:00:24]}
a4 {[%clk 00:24:37]} {[%emt 00:00:52]} 44. Ra7 {[%clk 00:48:27]} {[%emt
00:01:51]} Rd4 {[%clk 00:24:56]} {[%emt 00:00:11]} 45. Ke3 {[%clk 00:47:43]}
{[%emt 00:01:14]} Kg4 {[%clk 00:24:17]} {[%emt 00:01:07]} 0-1

[Event "Swedish Chess Championship 2019: Kadett-SM"]
[Site "Stiga Sports Arena, Arenatorget 1, Eskilstuna, Sweden, Sweden"]
[Date "2019.07.12"]
[Round "7.6"]
[White "Nord, Gabriel"]
[Black "Alfredsson, Daniel"]
[Result "1/2-1/2"]
[TimeControl "90 minutes for 40 moves + 30 minutes for the rest of the game + 30 seconds per move from move one"]
[WhiteFideId "1740660"]
[BlackFideId "1742205"]
[WhiteElo "1792"]
[BlackElo "1652"]

1. e4 {[%clk 01:30:20]} c5 {[%clk 01:30:53]} 2. Nc3 {[%clk 01:30:20]} e6 {[%clk
01:30:53]} 3. g3 {[%clk 01:30:20]} Nc6 {[%clk 01:30:53]} 4. Bg2 {[%clk
01:30:20]} Nf6 {[%clk 01:30:53]} 5. d3 {[%clk 01:30:20]} d5 {[%clk 01:30:53]} 6.
f4 {[%clk 01:30:20]} dxe4 {[%clk 01:30:53]} 7. Nxe4 {[%clk 01:30:20]} Be7
{[%emt 27:17:37]} 8. Be3 Nxe4 {[%clk 01:24:14]} 9. Bxe4 {[%clk 01:26:12]}
{[%emt 00:01:20]} Qc7 {[%clk 01:20:23]} {[%emt 00:04:22]} 10. Ne2 {[%clk
01:23:09]} {[%emt 00:03:32]} b6 {[%clk 01:18:15]} {[%emt 00:02:39]} 11. Nc3
{[%clk 01:18:46]} {[%emt 00:04:53]} Bb7 {[%clk 01:16:46]} {[%emt 00:01:59]} 12.
Qd2 {[%clk 01:17:05]} {[%emt 00:02:10]} Bf6 {[%clk 01:13:22]} {[%emt 00:03:56]}
13. Rf1 {[%clk 01:08:19]} {[%emt 00:09:15]} Nd4 {[%clk 01:11:13]} {[%emt
00:02:39]} 14. Qg2 {[%clk 01:07:28]} {[%emt 00:01:20]} O-O-O {[%clk 01:09:30]}
{[%emt 00:02:15]} 15. O-O-O {[%clk 00:59:06]} {[%emt 00:08:51]} Bxe4 {[%clk
01:05:49]} {[%emt 00:04:11]} 16. dxe4 {[%clk 00:57:32]} {[%emt 00:02:04]} Qc6
{[%clk 00:56:16]} {[%emt 00:10:03]} 17. Qf2 {[%clk 00:54:52]} {[%emt 00:03:09]}
Nb5 {[%clk 00:56:21]} {[%emt 00:00:26]} 18. Nxb5 {[%clk 00:53:56]} {[%emt
00:01:25]} Qxb5 {[%clk 00:56:37]} {[%emt 00:00:14]} 19. e5 {[%clk 00:53:51]}
{[%emt 00:00:35]} Be7 {[%clk 00:56:47]} {[%emt 00:00:20]} 20. Qf3 {[%clk
00:53:34]} {[%emt 00:00:47]} Kc7 {[%clk 00:56:26]} {[%emt 00:00:52]} 21. f5
{[%clk 00:49:27]} {[%emt 00:04:37]} Rxd1+ {[%clk 00:51:36]} {[%emt 00:05:20]}
22. Rxd1 {[%clk 00:49:40]} {[%emt 00:00:16]} Qc6 {[%clk 00:44:48]} {[%emt
00:07:19]} 23. Qg4 {[%clk 00:48:00]} {[%emt 00:02:10]} g6 {[%clk 00:41:59]}
{[%emt 00:03:19]} 24. f6 {[%clk 00:47:12]} {[%emt 00:01:18]} Bf8 {[%clk
00:41:16]} {[%emt 00:01:12]} 25. Qe2 {[%clk 00:46:32]} {[%emt 00:01:10]} c4
{[%clk 00:36:42]} {[%emt 00:05:05]} 26. Qd2 {[%clk 00:45:51]} {[%emt 00:01:11]}
Bc5 {[%clk 00:35:11]} {[%emt 00:02:01]} 27. Bxc5 {[%clk 00:44:07]} {[%emt
00:02:15]} bxc5 {[%clk 00:34:48]} {[%emt 00:00:53]} 28. Qa5+ {[%clk 00:39:40]}
{[%emt 00:04:57]} Kb7 {[%clk 00:31:44]} {[%emt 00:03:34]} 29. Kb1 {[%clk
00:38:55]} {[%emt 00:01:14]} Rc8 {[%clk 00:26:50]} {[%emt 00:05:23]} 30. a3
{[%clk 00:38:50]} {[%emt 00:00:36]} Qb6 {[%clk 00:26:32]} {[%emt 00:00:48]} 31.
Qd2 {[%clk 00:35:03]} {[%emt 00:04:17]} h5 {[%clk 00:25:35]} {[%emt 00:01:26]}
32. Qg2+ {[%clk 00:30:00]} {[%emt 00:05:33]} Qc6 {[%clk 00:24:46]} {[%emt
00:01:19]} 33. Qe2 {[%clk 00:29:53]} {[%emt 00:00:37]} Qa6 {[%clk 00:21:14]}
{[%emt 00:04:03]} 34. Qe4+ {[%clk 00:30:12]} {[%emt 00:00:10]} Kb8 {[%clk
00:19:26]} {[%emt 00:02:18]} 35. Rd6 {[%clk 00:29:01]} {[%emt 00:01:41]} Qb5
{[%clk 00:19:02]} {[%emt 00:00:53]} 36. Qe3 {[%clk 00:28:36]} {[%emt 00:00:55]}
Kb7 {[%clk 00:18:16]} {[%emt 00:01:16]} 37. Qd2 {[%clk 00:28:15]} {[%emt
00:00:51]} Rc7 {[%clk 00:17:23]} {[%emt 00:01:24]} 38. Rd8 {[%clk 00:27:45]}
{[%emt 00:01:00]} Qb6 {[%clk 00:14:51]} {[%emt 00:03:03]} 39. Re8 {[%clk
00:24:38]} {[%emt 00:03:36]} Qc6 {[%clk 00:12:49]} {[%emt 00:02:32]} 40. Re7
{[%clk 00:23:54]} {[%emt 00:01:14]} Kc8 {[%clk 00:12:04]} {[%emt 00:01:14]} 41.
Qd1 {[%clk 00:13:40]} {[%emt 00:10:44]} Rd7 {[%clk 00:10:10]} {[%emt 00:02:24]}
42. Qe2 {[%clk 00:14:35]} {[%emt 00:29:36]} Rxe7 {[%clk 00:39:49]} {[%emt
00:00:51]} 43. fxe7 {[%clk 00:14:57]} {[%emt 00:00:08]} Kd7 {[%clk 00:40:03]}
{[%emt 00:00:15]} 44. Qxc4 {[%clk 00:14:45]} {[%emt 00:00:43]} Kxe7 {[%clk
00:39:04]} {[%emt 00:01:29]} 45. b4 {[%clk 00:14:34]} {[%emt 00:00:41]} Kd7
{[%clk 00:37:52]} {[%emt 00:01:42]} 46. bxc5 {[%clk 00:13:35]} {[%emt
00:01:28]} Qh1+ {[%clk 00:37:56]} {[%emt 00:00:25]} 47. Kb2 {[%clk 00:13:52]}
{[%emt 00:00:15]} Qd5 {[%clk 00:37:22]} {[%emt 00:01:04]} 48. Qb5+ {[%clk
00:13:44]} {[%emt 00:00:38]} Kc7 {[%clk 00:37:21]} {[%emt 00:00:31]} 49. Qa5+
{[%clk 00:10:00]} {[%emt 00:04:14]} Kc6 {[%clk 00:37:22]} {[%emt 00:00:29]} 50.
Qxa7 {[%clk 00:10:16]} {[%emt 00:00:13]} Qxe5+ {[%clk 00:37:45]} {[%emt
00:00:07]} 51. Kb3 {[%clk 00:09:43]} {[%emt 00:01:03]} Qd5+ {[%clk 00:37:46]}
{[%emt 00:00:29]} 52. c4 {[%clk 00:09:47]} {[%emt 00:00:27]} Qd3+ {[%clk
00:36:16]} {[%emt 00:02:00]} 53. Kb4 {[%clk 00:09:33]} {[%emt 00:00:44]} Qd2+
{[%clk 00:35:40]} {[%emt 00:01:05]} 54. Kb3 {[%clk 00:09:07]} {[%emt 00:00:57]}
Qd3+ {[%clk 00:35:59]} {[%emt 00:00:11]} 55. Kb2 {[%clk 00:08:40]} {[%emt
00:00:57]} Qd2+ {[%clk 00:36:15]} {[%emt 00:00:14]} 56. Kb3 {[%clk 00:08:48]}
{[%emt 00:00:22]} Qd3+ {[%clk 00:36:34]} {[%emt 00:00:10]} 57. Kb2 {[%clk
00:09:03]} {[%emt 00:00:16]} 1/2-1/2

[Event "Swedish Chess Championship 2019: Kadett-SM"]
[Site "Stiga Sports Arena, Arenatorget 1, Eskilstuna, Sweden, Sweden"]
[Date "2019.07.13"]
[Round "8.1"]
[White "Nguyen, Gabriel"]
[Black "Mitra, Akash"]
[Result "1-0"]
[TimeControl "90 minutes for 40 moves + 30 minutes for the rest of the game + 30 seconds per move from move one"]
[WhiteFideId "1720791"]
[BlackFideId "1726714"]
[WhiteElo "2035"]
[BlackElo "1957"]

1. d4 {[%clk 01:30:47]} {[%emt 00:00:12]} Nf6 {[%clk 01:30:52]} {[%emt
00:00:08]} 2. c4 {[%clk 01:31:10]} {[%emt 00:00:07]} g6 {[%clk 01:31:15]}
{[%emt 00:00:07]} 3. Nc3 {[%clk 01:31:04]} {[%emt 00:00:36]} Bg7 {[%clk
01:31:33]} {[%emt 00:00:12]} 4. e4 {[%clk 01:30:50]} {[%emt 00:00:45]} d6
{[%clk 01:31:55]} {[%emt 00:00:08]} 5. Nf3 {[%clk 01:29:09]} {[%emt 00:02:12]}
O-O {[%clk 01:32:11]} {[%emt 00:00:14]} 6. Be2 {[%clk 01:29:35]} {[%emt
00:00:03]} e5 {[%clk 01:32:23]} {[%emt 00:00:18]} 7. d5 {[%clk 01:27:52]}
{[%emt 00:02:13]} a5 {[%clk 01:32:22]} {[%emt 00:00:32]} 8. Bg5 {[%clk
01:28:14]} {[%emt 00:00:07]} Na6 {[%clk 01:32:21]} {[%emt 00:00:31]} 9. Nd2
{[%clk 01:28:12]} {[%emt 00:00:32]} h6 {[%clk 01:32:26]} {[%emt 00:00:26]} 10.
Bh4 {[%clk 01:28:38]} {[%emt 00:00:04]} Bd7 {[%clk 01:32:13]} {[%emt 00:00:43]}
11. O-O {[%clk 01:28:58]} {[%emt 00:00:10]} Qe8 {[%clk 01:32:38]} {[%emt
00:00:05]} 12. b3 {[%clk 01:27:45]} {[%emt 00:01:43]} Nh7 {[%clk 01:31:34]}
{[%emt 00:01:34]} 13. f3 {[%clk 01:27:57]} {[%emt 00:00:18]} h5 {[%clk
01:31:54]} {[%emt 00:00:10]} 14. Bf2 {[%clk 01:25:26]} {[%emt 00:03:01]} Qe7
{[%clk 01:26:34]} {[%emt 00:05:49]} 15. Rb1 {[%clk 01:19:20]} {[%emt 00:06:38]}
f5 {[%clk 01:16:42]} {[%emt 00:10:21]} 16. a3 {[%clk 01:13:34]} {[%emt
00:06:17]} f4 {[%clk 01:16:00]} {[%emt 00:01:12]} 17. b4 {[%clk 01:13:21]}
{[%emt 00:00:43]} axb4 {[%clk 01:14:32]} {[%emt 00:01:58]} 18. axb4 {[%clk
01:13:45]} {[%emt 00:00:06]} g5 {[%clk 01:14:40]} {[%emt 00:00:21]} 19. Kh1
{[%clk 01:07:06]} {[%emt 00:07:09]} Rf6 {[%clk 01:12:04]} {[%emt 00:03:06]} 20.
Na4 {[%clk 01:03:35]} {[%emt 00:04:01]} Rg6 {[%clk 01:04:16]} {[%emt 00:08:18]}
21. c5 {[%clk 00:57:12]} {[%emt 00:06:53]} g4 {[%clk 00:52:36]} {[%emt
00:12:10]} 22. cxd6 {[%clk 00:56:44]} {[%emt 00:00:57]} cxd6 {[%clk 00:51:17]}
{[%emt 00:01:49]} 23. Nb6 {[%clk 00:55:02]} {[%emt 00:02:12]} Rf8 {[%clk
00:40:17]} {[%emt 00:11:30]} 24. Nxd7 {[%clk 00:44:31]} {[%emt 00:11:02]} Qxd7
{[%clk 00:40:40]} {[%emt 00:00:07]} 25. Qb3 {[%clk 00:42:06]} {[%emt 00:02:55]}
Qe7 {[%clk 00:39:34]} {[%emt 00:01:35]} 26. Rfc1 {[%clk 00:33:53]} {[%emt
00:08:43]} g3 {[%clk 00:32:57]} {[%emt 00:07:07]} 27. Bg1 {[%clk 00:34:01]}
{[%emt 00:00:21]} gxh2 {[%clk 00:30:56]} {[%emt 00:02:32]} 28. Bxh2 {[%clk
00:33:35]} {[%emt 00:00:57]} Bf6 {[%clk 00:30:01]} {[%emt 00:01:25]} 29. Rc2
{[%clk 00:28:16]} {[%emt 00:05:48]} Bh4 {[%clk 00:30:09]} {[%emt 00:00:22]} 30.
Bxa6 {[%clk 00:25:20]} {[%emt 00:03:26]} bxa6 {[%clk 00:30:15]} {[%emt
00:00:24]} 31. Nf1 {[%clk 00:25:43]} {[%emt 00:00:07]} Kh8 {[%clk 00:22:40]}
{[%emt 00:08:06]} 32. Qc4 {[%clk 00:15:41]} {[%emt 00:10:32]} Rfg8 {[%clk
00:18:50]} {[%emt 00:04:19]} 33. Qxa6 {[%clk 00:14:05]} {[%emt 00:02:07]} Qg7
{[%clk 00:18:51]} {[%emt 00:00:29]} 34. Rbb2 {[%clk 00:11:31]} {[%emt
00:03:04]} Ng5 {[%clk 00:18:03]} {[%emt 00:01:18]} 35. Qb6 {[%clk 00:11:31]}
{[%emt 00:00:30]} Bg3 {[%clk 00:17:40]} {[%emt 00:00:53]} 36. Bxg3 {[%clk
00:07:29]} {[%emt 00:04:31]} fxg3 {[%clk 00:17:44]} {[%emt 00:00:26]} 37. Nxg3
{[%clk 00:07:09]} {[%emt 00:00:51]} h4 {[%clk 00:13:09]} {[%emt 00:05:06]} 38.
Nf5 {[%clk 00:06:28]} {[%emt 00:01:11]} Qh7 {[%clk 00:12:27]} {[%emt 00:01:11]}
39. Qe3 {[%clk 00:06:17]} {[%emt 00:00:40]} Ra8 {[%clk 00:07:11]} {[%emt
00:05:47]} 40. b5 {[%clk 00:03:52]} {[%emt 00:02:55]} h3 {[%clk 00:04:37]}
{[%emt 00:03:03]} 41. g3 {[%clk 00:03:33]} {[%emt 00:00:49]} h2 {[%clk
00:28:43]} {[%emt 00:06:24]} 42. Rxh2 {[%clk 00:28:14]} {[%emt 00:05:49]} Nh3
{[%clk 00:28:07]} {[%emt 00:01:06]} 43. Qc1 {[%clk 00:28:04]} {[%emt 00:00:40]}
Rag8 {[%clk 00:23:16]} {[%emt 00:05:22]} 44. Rxh3 {[%clk 00:26:32]} {[%emt
00:02:02]} Qxh3+ {[%clk 00:23:35]} {[%emt 00:00:11]} 45. Rh2 {[%clk 00:26:55]}
{[%emt 00:00:06]} Qxh2+ {[%clk 00:24:00]} {[%emt 00:00:04]} 46. Kxh2 {[%clk
00:27:20]} {[%emt 00:00:07]} Ra8 {[%clk 00:24:14]} {[%emt 00:00:15]} 47. b6
{[%clk 00:27:07]} {[%emt 00:00:44]} Rgg8 {[%clk 00:24:10]} {[%emt 00:00:35]} 48.
Qh6# {[%clk 00:27:16]} {[%emt 00:00:21]} 1-0

[Event "Swedish Chess Championship 2019: Kadett-SM"]
[Site "Stiga Sports Arena, Arenatorget 1, Eskilstuna, Sweden, Sweden"]
[Date "2019.07.13"]
[Round "8.2"]
[White "Muntean, Victor"]
[Black "Zarytovskaya, Margo"]
[Result "1-0"]
[TimeControl "90 minutes for 40 moves + 30 minutes for the rest of the game + 30 seconds per move from move one"]
[WhiteFideId "1054414"]
[BlackFideId "14149249"]
[WhiteElo "1971"]
[BlackElo "1895"]

1. e4 {[%clk 01:30:57]} {[%emt 00:00:02]} e6 {[%clk 01:30:56]} {[%emt
00:00:04]} 2. d4 {[%clk 01:31:18]} {[%emt 00:00:09]} d5 {[%clk 01:31:21]}
{[%emt 00:00:05]} 3. e5 {[%clk 01:31:37]} {[%emt 00:00:11]} c5 {[%clk
01:31:43]} {[%emt 00:00:08]} 4. c3 {[%clk 01:32:01]} {[%emt 00:00:06]} Qb6
{[%clk 01:32:05]} {[%emt 00:00:08]} 5. Nf3 {[%clk 01:32:19]} {[%emt 00:00:12]}
Nc6 {[%clk 01:32:27]} {[%emt 00:00:08]} 6. Bd3 {[%clk 01:32:41]} {[%emt
00:00:08]} cxd4 {[%clk 01:32:43]} {[%emt 00:00:14]} 7. cxd4 {[%clk 01:33:06]}
{[%emt 00:00:05]} Bd7 {[%clk 01:33:02]} {[%emt 00:00:11]} 8. Nc3 {[%clk
01:33:19]} {[%emt 00:00:17]} Nxd4 {[%clk 01:30:40]} {[%emt 00:02:52]} 9. Nxd4
{[%clk 01:33:42]} {[%emt 00:00:07]} Qxd4 {[%clk 01:30:44]} {[%emt 00:00:27]} 10.
O-O {[%clk 01:34:06]} {[%emt 00:00:06]} a6 {[%clk 01:29:17]} {[%emt 00:01:57]}
11. Qe2 {[%clk 01:34:27]} {[%emt 00:00:09]} Bc5 {[%clk 01:23:37]} {[%emt
00:06:10]} 12. Be3 {[%clk 01:26:58]} {[%emt 00:07:59]} Qb4 {[%clk 01:23:51]}
{[%emt 00:00:16]} 13. a3 {[%clk 01:27:15]} {[%emt 00:00:13]} Qb6 {[%clk
01:24:11]} {[%emt 00:00:10]} 14. Qg4 {[%clk 01:26:50]} {[%emt 00:00:55]} Kf8
{[%clk 01:16:05]} {[%emt 00:08:36]} 15. Nxd5 {[%clk 01:25:46]} {[%emt
00:01:34]} exd5 {[%clk 01:05:24]} {[%emt 00:11:12]} 16. Qxd7 {[%clk 01:22:11]}
{[%emt 00:04:05]} d4 {[%clk 00:56:11]} {[%emt 00:09:43]} 17. Bc4 {[%clk
01:17:56]} {[%emt 00:04:45]} Ne7 {[%clk 00:53:19]} {[%emt 00:03:22]} 18. b4
{[%clk 01:05:09]} {[%emt 00:13:17]} Qc6 {[%clk 00:50:18]} {[%emt 00:03:30]} 19.
Qxc6 {[%clk 00:59:01]} {[%emt 00:06:39]} Nxc6 {[%clk 00:50:34]} {[%emt
00:00:14]} 20. bxc5 {[%clk 00:58:58]} {[%emt 00:00:33]} dxe3 {[%clk 00:50:40]}
{[%emt 00:00:24]} 21. fxe3 {[%clk 00:58:24]} {[%emt 00:01:04]} Nxe5 {[%clk
00:49:52]} {[%emt 00:01:19]} 22. Bd5 {[%clk 00:58:48]} {[%emt 00:00:06]} Rc8
{[%clk 00:44:08]} {[%emt 00:06:14]} 23. Rab1 {[%clk 00:52:09]} {[%emt
00:07:08]} Rxc5 {[%clk 00:39:05]} {[%emt 00:05:33]} 24. Rxb7 {[%clk 00:52:02]}
{[%emt 00:00:37]} Rxd5 {[%clk 00:39:17]} {[%emt 00:00:19]} 25. Rb8+ {[%clk
00:52:24]} {[%emt 00:00:07]} Ke7 {[%clk 00:39:41]} {[%emt 00:00:05]} 26. Rxh8
{[%clk 00:52:48]} {[%emt 00:00:06]} Ra5 {[%clk 00:35:43]} {[%emt 00:04:28]} 27.
Rxh7 {[%clk 00:50:13]} {[%emt 00:03:05]} Rxa3 {[%clk 00:35:52]} {[%emt
00:00:22]} 28. Rxg7 {[%clk 00:50:13]} {[%emt 00:00:30]} Rxe3 {[%clk 00:35:31]}
{[%emt 00:00:51]} 29. Ra1 {[%clk 00:49:46]} {[%emt 00:00:56]} Kf6 {[%clk
00:27:43]} {[%emt 00:08:18]} 30. Rg8 {[%clk 00:49:03]} {[%emt 00:01:12]} Kf5
{[%clk 00:24:30]} {[%emt 00:03:43]} 31. h3 {[%clk 00:45:28]} {[%emt 00:04:04]}
Kf4 {[%clk 00:16:36]} {[%emt 00:08:24]} 32. Ra4+ {[%clk 00:45:01]} {[%emt
00:00:58]} Kf5 {[%clk 00:15:56]} {[%emt 00:01:11]} 33. Rxa6 {[%clk 00:44:54]}
{[%emt 00:00:36]} Re1+ {[%clk 00:15:20]} {[%emt 00:01:05]} 34. Kh2 {[%clk
00:45:10]} {[%emt 00:00:14]} Re2 {[%clk 00:14:47]} {[%emt 00:01:04]} 35. Ra5
{[%clk 00:45:02]} {[%emt 00:00:37]} Kf4 {[%clk 00:14:02]} {[%emt 00:01:15]} 36.
Ra4+ {[%clk 00:44:57]} {[%emt 00:00:35]} Kf5 {[%clk 00:13:10]} {[%emt
00:01:22]} 37. Rg3 {[%clk 00:41:27]} {[%emt 00:04:00]} f6 {[%clk 00:11:43]}
{[%emt 00:01:57]} 38. h4 {[%clk 00:41:12]} {[%emt 00:00:46]} Rd2 {[%clk
00:11:08]} {[%emt 00:01:05]} 39. h5 {[%clk 00:38:42]} {[%emt 00:02:59]} Rd7
{[%clk 00:10:53]} {[%emt 00:00:45]} 40. h6 {[%clk 00:38:41]} {[%emt 00:00:32]}
Rh7 {[%clk 00:03:00]} {[%emt 00:08:22]} 41. Rh4 {[%clk 00:38:48]} {[%emt
00:00:23]} Ke6 {[%clk 00:02:19]} {[%emt 00:01:12]} 42. Rg7 {[%clk 00:36:49]}
{[%emt 00:02:29]} Rxg7 {[%clk 00:01:25]} {[%emt 00:01:25]} 43. hxg7 {[%clk
00:36:59]} {[%emt 00:00:21]} Kf7 {[%clk 00:01:52]} {[%emt 00:00:02]} 44. Ra4
{[%clk 00:33:06]} {[%emt 00:04:22]} Kxg7 {[%clk 00:02:11]} {[%emt 00:00:11]} 45.
Kg3 {[%clk 00:31:54]} {[%emt 00:01:43]} Kg6 {[%clk 00:01:56]} {[%emt 00:00:44]}
46. Kf4 {[%clk 00:31:36]} {[%emt 00:00:49]} Nd3+ {[%clk 00:01:45]} {[%emt
00:00:41]} 47. Ke3 {[%clk 00:31:51]} {[%emt 00:00:14]} Ne5 {[%clk 00:01:25]}
{[%emt 00:00:50]} 48. Ke4 {[%clk 00:30:03]} {[%emt 00:02:19]} Nd7 {[%clk
00:28:30]} {[%emt 00:03:25]} 49. Ra7 {[%clk 00:59:23]} {[%emt 00:01:10]} Ne5
{[%clk 00:27:57]} {[%emt 00:01:04]} 50. Kd5 {[%clk 00:59:10]} {[%emt 00:00:42]}
Kf5 {[%clk 00:27:05]} {[%emt 00:01:21]} 51. Ra1 {[%clk 00:58:39]} {[%emt
00:01:02]} Kg5 {[%clk 00:21:30]} {[%emt 00:06:04]} 52. Rf1 {[%clk 00:57:25]}
{[%emt 00:01:44]} Ng4 {[%clk 00:19:26]} {[%emt 00:02:35]} 53. Ke6 {[%clk
00:57:13]} {[%emt 00:00:42]} Ne3 {[%clk 00:16:16]} {[%emt 00:03:40]} 54. Rf3
{[%clk 00:57:00]} {[%emt 00:00:43]} Ng4 {[%clk 00:16:10]} {[%emt 00:00:35]} 55.
g3 {[%clk 00:56:24]} {[%emt 00:01:07]} Kg6 {[%clk 00:15:31]} {[%emt 00:01:10]}
56. Rf5 {[%clk 00:54:51]} {[%emt 00:02:02]} Nh6 {[%clk 00:09:46]} {[%emt
00:06:15]} 57. Rxf6 {[%clk 00:55:09]} {[%emt 00:00:12]} Kg5 {[%clk 00:10:00]}
{[%emt 00:00:16]} 58. Rxh6 {[%clk 00:55:54]} {[%emt 00:00:16]} Kxh6 {[%clk
00:10:45]} {[%emt 00:00:16]} 59. Kf5 {[%clk 00:56:13]} {[%emt 00:00:11]} Kg7
{[%clk 00:10:56]} {[%emt 00:00:19]} 60. Kg5 {[%clk 00:56:35]} {[%emt 00:00:08]}
Kh7 {[%clk 00:11:02]} {[%emt 00:00:24]} 61. Kf6 {[%clk 00:56:41]} {[%emt
00:00:24]} Kg8 {[%clk 00:09:13]} {[%emt 00:02:18]} 62. Kg6 {[%clk 00:56:57]}
{[%emt 00:00:14]} Kh8 {[%clk 00:09:24]} {[%emt 00:00:20]} 63. g4 {[%clk
00:57:05]} {[%emt 00:00:22]} Kg8 {[%clk 00:09:51]} {[%emt 00:00:03]} 64. g5
{[%clk 00:57:28]} {[%emt 00:00:07]} Kh8 {[%clk 00:10:02]} {[%emt 00:00:19]} 65.
Kf7 {[%clk 00:57:53]} {[%emt 00:00:05]} 1-0